fUSD/lending_fUSD_20240203
["ID","MTS","AMOUNT","RATE_DAILY","PERIOD"]
[313205600,1706946633648,-12499.49751775,0.00022542,2]
[313205601,1706946633678,-7063.62211604,0.00022542,2]
[313205602,1706946633689,-3358.67127474,0.00022542,2]
[313205603,1706946633736,-250.0,0.00022542,2]
[313205634,1706946639070,-265.92326834,0.00022542,2]
[313205635,1706946639128,-4291.43187344,0.00022542,2]
[313205659,1706946642562,-4185.45380288,0.00022542,2]
[313205660,1706946642578,-3525.11507072,0.00022542,2]
[313205661,1706946642745,-1500.0,0.00022542,2]
[313205662,1706946642801,-127372.28507609,0.00022542,2]
[313205663,1706946642810,-150.0,0.000226,2]
[313205664,1706946642819,-2013.95996161,0.0002269,2]
[313205665,1706946642828,-1000.0,0.000227,2]
[313205666,1706946642837,-370.11160997,0.00022899,2]
[313205667,1706946642860,-60.54339003,0.00022899,2]
[313205668,1706946642869,-281.15588571,0.00022996,2]
[313205669,1706946642879,-1792.26669351,0.00022997,2]
[313205670,1706946642887,-500.0,0.00022997,2]
[313205671,1706946642896,-500.0,0.00022997,2]
[313205672,1706946642905,-488.99316713,0.00022997,2]
[313205673,1706946642914,-500.0,0.00022997,2]
[313205674,1706946642923,-500.0,0.00022997,2]
[313205675,1706946642932,-500.0,0.00022997,2]
[313205676,1706946642941,-500.0,0.00022997,2]
[313205677,1706946642950,-500.0,0.00022997,2]
[313205678,1706946642959,-500.0,0.00022997,2]
[313205679,1706946642969,-1529.01,0.00022997,2]
[313205680,1706946642978,-655.4,0.00022997,2]
[313205681,1706946642987,-500.0,0.00022997,2]
[313205682,1706946642996,-500.0,0.00022997,2]
[313205683,1706946643005,-1129.59,0.00022997,2]
[313205684,1706946643015,-500.0,0.00022997,2]
[313205685,1706946643026,-500.0,0.00022997,2]
[313205686,1706946643035,-500.0,0.00022997,2]
[313205687,1706946643044,-206.95,0.00022997,2]
[313205688,1706946643054,-513.13,0.00022997,2]
[313205689,1706946643063,-500.0,0.00022997,2]
[313205690,1706946643072,-500.0,0.00022997,2]
[313205691,1706946643081,-658.61,0.00022997,2]
[313205692,1706946643090,-21331.65341558,0.00022998,2]
[313205693,1706946644195,-90498.56384316,0.00022998,2]
[313205694,1706946644204,-435.59803142,0.00022998,2]
[313205695,1706946644215,-155.0,0.00022998,2]
[313205696,1706946644226,-262.83505469,0.00022999,2]
[313205697,1706946644236,-200.0,0.00022999,2]
[313205698,1706946644245,-500.0,0.00022999,2]
[313205699,1706946644255,-415.77982556,0.00022999,2]
[313205700,1706946644269,-500.0,0.00022999,2]
[313205701,1706946644279,-500.0,0.00022999,2]
[313205702,1706946644289,-500.0,0.00022999,2]
[313205703,1706946644300,-500.0,0.00022999,2]
[313205704,1706946644309,-500.0,0.00022999,2]
[313205705,1706946644319,-500.0,0.00022999,2]
[313205706,1706946644328,-500.0,0.00022999,2]
[313205707,1706946644338,-500.0,0.00022999,2]
[313205708,1706946644349,-591.68,0.00022999,2]
[313205709,1706946644359,-500.0,0.00022999,2]
[313205710,1706946644369,-290.62977602,0.00022999,2]
[313205711,1706946644378,-500.0,0.00022999,2]
[313205712,1706946644387,-500.0,0.00022999,2]
[313205713,1706946644397,-500.0,0.00022999,2]
[313205714,1706946644407,-500.0,0.00022999,2]
[313205715,1706946644416,-562.59,0.00022999,2]
[313205716,1706946644426,-500.0,0.00022999,2]
[313205717,1706946644435,-500.0,0.00022999,2]
[313205718,1706946644444,-274.96771905,0.00022999,2]
[313205719,1706946644454,-963.58,0.00022999,2]
[313205720,1706946644464,-500.0,0.00022999,2]
[313205721,1706946644474,-500.0,0.00022999,2]
[313205722,1706946644483,-500.0,0.00022999,2]
[313205723,1706946644493,-500.0,0.00022999,2]
[313205724,1706946644502,-500.0,0.00022999,2]
[313205725,1706946644513,-500.0,0.00022999,2]
[313205726,1706946644523,-500.0,0.00022999,2]
[313205727,1706946644533,-500.0,0.00022999,2]
[313205728,1706946644544,-500.0,0.00022999,2]
[313205729,1706946644553,-1184.25,0.00022999,2]
[313205730,1706946644563,-590.34,0.00022999,2]
[313205731,1706946644573,-240.17,0.00022999,2]
[313205732,1706946644582,-175.87182134,0.00022999,2]
[313205733,1706946644592,-500.0,0.00022999,2]
[313205734,1706946644601,-180.78,0.00022999,2]
[313205735,1706946644611,-500.0,0.00022999,2]
[313205736,1706946644620,-500.0,0.00022999,2]
[313205737,1706946644629,-1799.11,0.00022999,2]
[313205738,1706946644639,-500.0,0.00022999,2]
[313205739,1706946644648,-2964.06688797,0.00023,3]
[313205740,1706946644658,-1404.73835461,0.00023,3]
[313205741,1706946644669,-2178.95710225,0.00023,3]
[313205742,1706946645532,-151.82739619,0.000229,2]
[313205743,1706946645558,-848.17260381,0.00023,3]
[313205744,1706946645589,-408.94739987,0.00023,3]
[313205745,1706946645600,-1735.05672845,0.00023,3]
[313205746,1706946649682,-254.70620598,0.000229,2]
[313205747,1706946649692,-500.0,0.00022997,2]
[313205748,1706946649701,-278.69692436,0.00022997,2]
[313205749,1706946649739,-644.73307564,0.00022997,2]
[313205750,1706946649748,-1234.81335852,0.00022999,2]
[313205751,1706946649758,-500.0,0.00022999,2]
[313205752,1706946649768,-7188.66137425,0.00023,3]
[313205753,1706946649781,-37385.36750133,0.00023,3]
[313205754,1706946649798,-299.975,0.00023,3]
[313205755,1706946649809,-4371.53791403,0.00023,3]
[313205756,1706946649820,-547.6277221,0.00023,3]
[313205757,1706946649855,-1000.0,0.00023,3]
[313205758,1706946649867,-504.91713851,0.00023,3]
[313205763,1706946659257,424.1652,0.00022499,2]
[313205764,1706946670856,152.8,0.00020668,2]
[313205765,1706946674621,50000.0,0.00022196,2]
[313205766,1706946838963,168.29,0.0002233,2]
[313205767,1706946905538,302.4,0.00022332,2]
[313205768,1706946909608,1203.22180925,0.00022196,2]
[313205769,1706946965674,178.84,0.00022275,2]
[313205770,1706947020623,1041.4,0.00022275,2]
[313205771,1706947105849,152.8,0.00020359,2]
[313205772,1706947132100,5772.35039105,0.000225,2]
[313205773,1706947132126,400.0,0.000225,2]
[313205774,1706947132149,400.0,0.000225,2]
[313205775,1706947132173,3427.64960895,0.000225,2]
[313205776,1706947152344,10000.0,0.000225,2]
[313205777,1706947182306,5906.3,0.000225,2]
[313205778,1706947211066,500.0,0.000219,2]
[313205779,1706947239910,3332.34607681,0.00022196,2]
[313205780,1706947249192,168.29,0.00022278,2]
[313205837,1706947488750,758.08,0.00022213,2]
[313205843,1706947507371,167.8,0.00022243,2]
[313205850,1706947548115,152.8,0.00020297,2]
[313205852,1706947569412,1982.05725598,0.00022196,2]
[313205857,1706947719323,168.29,0.00022217,2]
[313205885,1706947831789,-150.0,0.00022511,2]
[313205889,1706947831799,-207.09,0.000226,2]
[313205891,1706947831808,-150.0,0.00022627,2]
[313205892,1706947831818,-1.38962113,0.0002267,2]
[313205893,1706947831830,-429.31587887,0.0002267,2]
[313205894,1706947831839,-375.10982505,0.000227,2]
[313205895,1706947831850,-429.05535514,0.000227,2]
[313205896,1706947831900,-195.83481981,0.000227,2]
[313205897,1706947831909,-3013.71372341,0.0002277,2]
[313205898,1706947831956,-3281.26752158,0.0002277,2]
[313205899,1706947831965,-29.78003548,0.00022818,2]
[313205900,1706947832017,-409.96149532,0.00022818,2]
[313205901,1706947832029,-615.8654692,0.00022818,2]
[313205902,1706947832037,-0.49377089,0.00022899,2]
[313205903,1706947832049,-265.86832911,0.00022899,2]
[313205904,1706947832058,-134.03324694,0.00022899,2]
[313205905,1706947832069,-558.28575306,0.00022899,2]
[313205906,1706947832078,-151.82739619,0.000229,2]
[313205907,1706947832086,-210.96951609,0.000229,2]
[313205908,1706947832095,-206.55673456,0.000229,2]
[313205909,1706947832104,-500.0,0.00022997,2]
[313205910,1706947832114,-96.3386801,0.00022997,2]
[313205931,1706947837746,-64.87558342,0.00022997,2]
[313205932,1706947837756,-537.36745332,0.00022997,2]
[313205933,1706947837765,-516.02830027,0.00022997,2]
[313205934,1706947837775,-173.71927907,0.00022997,2]
[313205935,1706947837804,-326.28072093,0.00022997,2]
[313205936,1706947837814,-559.71697082,0.00022997,2]
[313205937,1706947837823,-500.02890067,0.00022997,2]
[313205938,1706947837832,-521.86784095,0.00022997,2]
[313205939,1706947837841,-554.05435277,0.00022997,2]
[313205940,1706947837850,-319.66060215,0.00022997,2]
[313205941,1706947837859,-500.0,0.00022997,2]
[313205942,1706947837869,-536.92381731,0.00022997,2]
[313205943,1706947837878,-500.0,0.00022997,2]
[313205944,1706947837887,-575.58824298,0.00022997,2]
[313205945,1706947837897,-538.63392873,0.00022997,2]
[313205946,1706947837906,-612.67454039,0.00022997,2]
[313205947,1706947837916,-568.22574456,0.00022997,2]
[313205948,1706947837925,-318.32649432,0.00022997,2]
[313205949,1706947837934,-563.75076258,0.00022997,2]
[313205950,1706947837944,-558.21282539,0.00022997,2]
[313205951,1706947837954,-236.86293597,0.00022997,2]
[313205952,1706947837967,-263.13706403,0.00022997,2]
[313205953,1706947837976,-580.20803576,0.00022997,2]
[313205954,1706947837986,-306.18531534,0.00022997,2]
[313205955,1706947838654,-211.52202205,0.00022997,2]
[313205956,1706947838664,-515.18019259,0.00022997,2]
[313205957,1706947838679,-30.68581275,0.00022997,2]
[313205958,1706947838688,-567.03,0.00022997,2]
[313205959,1706947838698,-143.5614268,0.00022997,2]
[313205960,1706947838709,-420.8888349,0.00022997,2]
[313206108,1706947840342,-2.47763548,0.00022997,2]
[313206110,1706947840351,-500.0,0.00022997,2]
[313206112,1706947840361,-500.0,0.00022997,2]
[313206114,1706947840370,-500.0,0.00022997,2]
[313206116,1706947840379,-204.72187033,0.00022997,2]
[313206120,1706947840403,-252.52340517,0.00022997,2]
[313206122,1706947840412,-500.0,0.00022997,2]
[313206123,1706947840422,-995.89971001,0.00022997,2]
[313206138,1706947840559,-86.63028999,0.00022997,2]
[313206140,1706947840568,-310.88971001,0.00022997,2]
[313206406,1706947844090,-189.11028999,0.00022997,2]
[313206407,1706947844101,-500.0,0.00022997,2]
[313206408,1706947844111,-500.0,0.00022997,2]
[313206409,1706947844123,-539.14,0.00022997,2]
[313206410,1706947844133,-328.23795109,0.00022997,2]
[313206411,1706947844143,-3879.6167568,0.00022998,2]
[313206412,1706947844152,-499.99,0.00022998,2]
[313206413,1706947844162,-6385.38631787,0.00022999,2]
[313206414,1706947844171,-3069.76898251,0.00022999,2]
[313206415,1706947844180,-273.74,0.00022999,2]
[313206416,1706947844189,-158.69023535,0.00022999,2]
[313206417,1706947844199,-500.0,0.00022999,2]
[313206418,1706947844208,-500.0,0.00022999,2]
[313206419,1706947844218,-624.29601936,0.00022999,2]
[313206420,1706947844227,-500.0,0.00022999,2]
[313206421,1706947844235,-523.08164024,0.00022999,2]
[313206422,1706947844245,-500.0,0.00022999,2]
[313206423,1706947844254,-552.66856171,0.00022999,2]
[313206424,1706947844264,-534.78929136,0.00022999,2]
[313206425,1706947844273,-500.0,0.00022999,2]
[313206426,1706947844282,-507.8628672,0.00022999,2]
[313206427,1706947844291,-500.0,0.00022999,2]
[313206428,1706947844300,-500.0,0.00022999,2]
[313206429,1706947844309,-537.62857969,0.00022999,2]
[313206430,1706947844318,-500.0,0.00022999,2]
[313206431,1706947844328,-496.26189021,0.00022999,2]
[313206432,1706947844337,-500.0,0.00022999,2]
[313206433,1706947844346,-500.0,0.00022999,2]
[313206434,1706947844354,-535.74362496,0.00022999,2]
[313206435,1706947844364,-500.0,0.00022999,2]
[313206438,1706947844373,-521.16819204,0.00022999,2]
[313206439,1706947844382,-500.0,0.00022999,2]
[313206440,1706947844391,-500.0,0.00022999,2]
[313206441,1706947844400,-500.0,0.00022999,2]
[313206442,1706947844410,-500.0,0.00022999,2]
[313206443,1706947844419,-501.17993853,0.00022999,2]
[313206444,1706947844428,-500.0,0.00022999,2]
[313206445,1706947844437,-535.31229854,0.00022999,2]
[313206446,1706947844446,-500.0,0.00022999,2]
[313206447,1706947844455,-500.0,0.00022999,2]
[313206448,1706947844464,-500.0,0.00022999,2]
[313206449,1706947844473,-500.0,0.00022999,2]
[313206450,1706947844482,-500.0,0.00022999,2]
[313206451,1706947844491,-500.0,0.00022999,2]
[313206452,1706947844500,-500.0,0.00022999,2]
[313206453,1706947844509,-500.0,0.00022999,2]
[313206454,1706947844522,-500.0,0.00022999,2]
[313206455,1706947844531,-500.0,0.00022999,2]
[313206456,1706947844539,-500.0,0.00022999,2]
[313206457,1706947844549,-535.03834451,0.00022999,2]
[313206458,1706947844558,-500.0,0.00022999,2]
[313206459,1706947844567,-500.0,0.00022999,2]
[313206460,1706947844576,-294.2,0.00022999,2]
[313206461,1706947844586,-500.0,0.00022999,2]
[313206462,1706947844595,-535.08176773,0.00022999,2]
[313206463,1706947844604,-500.0,0.00022999,2]
[313206464,1706947844614,-500.0,0.00022999,2]
[313206465,1706947844622,-500.0,0.00022999,2]
[313206466,1706947844632,-500.0,0.00022999,2]
[313206467,1706947844641,-528.75668559,0.00022999,2]
[313206468,1706947844650,-500.0,0.00022999,2]
[313206469,1706947844659,-398.54058939,0.00022999,2]
[313206470,1706947844668,-500.0,0.00022999,2]
[313206471,1706947844677,-500.0,0.00022999,2]
[313206472,1706947844686,-500.0,0.00022999,2]
[313206473,1706947844696,-210.0496212,0.00022999,2]
[313206474,1706947844705,-236.39493764,0.00022999,2]
[313206475,1706947844714,-500.0,0.00022999,2]
[313206476,1706947844723,-500.0,0.00022999,2]
[313206477,1706947844732,-500.0,0.00022999,2]
[313206478,1706947844741,-500.0,0.00022999,2]
[313206479,1706947844751,-96.91225394,0.00022999,2]
[313206480,1706947844764,-403.08774606,0.00022999,2]
[313206481,1706947844773,-8.66156484,0.00022999,2]
[313206482,1706947844785,-491.33843516,0.00022999,2]
[313206483,1706947844794,-160.87094303,0.00022999,2]
[313206484,1706947844805,-339.12905697,0.00022999,2]
[313206485,1706947844815,-275.16269282,0.00022999,2]
[313206486,1706947844826,-224.83730718,0.00022999,2]
[313206487,1706947844835,-500.0,0.00022999,2]
[313206488,1706947844845,-542.37631364,0.00022999,2]
[313206489,1706947844854,-500.0,0.00022999,2]
[313206490,1706947844863,-226.51507517,0.00022999,2]
[313206491,1706947844872,-595.54045968,0.00022999,2]
[313206492,1706947844882,-500.0,0.00022999,2]
[313206493,1706947844892,-503.58395943,0.00022999,2]
[313206494,1706947844902,-500.0,0.00022999,2]
[313206495,1706947844911,-534.5749317,0.00022999,2]
[313206496,1706947844920,-216.92820059,0.00022999,2]
[313206497,1706947845718,-283.07179941,0.00022999,2]
[313206498,1706947845728,-430.0,0.00022999,2]
[313206499,1706947845737,-500.0,0.00022999,2]
[313206500,1706947845747,-500.0,0.00022999,2]
[313206501,1706947845756,-500.0,0.00022999,2]
[313206502,1706947845882,-500.0,0.00022999,2]
[313206503,1706947845891,-500.0,0.00022999,2]
[313206504,1706947845900,-512.92666345,0.00022999,2]
[313206505,1706947845910,-500.0,0.00022999,2]
[313206506,1706947845919,-500.0,0.00022999,2]
[313206507,1706947845928,-500.0,0.00022999,2]
[313206508,1706947845937,-500.0,0.00022999,2]
[313206509,1706947845946,-500.0,0.00022999,2]
[313206510,1706947845956,-500.0,0.00022999,2]
[313206511,1706947845966,-500.0,0.00022999,2]
[313206512,1706947845975,-500.0,0.00022999,2]
[313206513,1706947845985,-1724.15,0.00022999,2]
[313206514,1706947845994,-631.17,0.00022999,2]
[313206515,1706947846002,-500.0,0.00022999,2]
[313206516,1706947846012,-500.0,0.00022999,2]
[313206517,1706947846022,-611.73,0.00022999,2]
[313206518,1706947846032,-884.96,0.00022999,2]
[313206519,1706947846043,-500.0,0.00022999,2]
[313206520,1706947846053,-500.0,0.00022999,2]
[313206521,1706947846062,-500.0,0.00022999,2]
[313206522,1706947846071,-500.0,0.00022999,2]
[313206523,1706947846080,-135.59058403,0.00022999,2]
[313206524,1706947846100,-364.40941597,0.00022999,2]
[313206525,1706947846109,-500.0,0.00022999,2]
[313206526,1706947846119,-214.03464686,0.00022999,2]
[313206527,1706947846133,-312.74855917,0.00022999,2]
[313206528,1706947846144,-500.0,0.00022999,2]
[313206529,1706947846153,-500.0,0.00022999,2]
[313206530,1706947846163,-500.0,0.00022999,2]
[313206531,1706947846173,-500.0,0.00022999,2]
[313206532,1706947846183,-407.0061055,0.00022999,2]
[313206533,1706947846194,-185.24275672,0.00022999,2]
[313206534,1706947846203,-500.0,0.00022999,2]
[313206535,1706947846212,-500.0,0.00022999,2]
[313206536,1706947846221,-500.0,0.00022999,2]
[313206537,1706947846231,-500.0,0.00022999,2]
[313206538,1706947846240,-500.0,0.00022999,2]
[313206539,1706947846250,-500.0,0.00022999,2]
[313206540,1706947846259,-500.0,0.00022999,2]
[313206541,1706947846269,-500.0,0.00022999,2]
[313206542,1706947846278,-500.0,0.00022999,2]
[313206543,1706947846287,-500.0,0.00022999,2]
[313206544,1706947846296,-500.0,0.00022999,2]
[313206545,1706947846307,-500.0,0.00022999,2]
[313206546,1706947846317,-500.0,0.00022999,2]
[313206547,1706947846326,-500.0,0.00022999,2]
[313206548,1706947846337,-234.64977111,0.00022999,2]
[313206549,1706947846349,-265.35022889,0.00022999,2]
[313206550,1706947846358,-520.99113585,0.00022999,2]
[313206551,1706947846367,-614.14,0.00022999,2]
[313206552,1706947846377,-500.0,0.00022999,2]
[313206553,1706947846385,-550.55,0.00022999,2]
[313206554,1706947846394,-646.44,0.00022999,2]
[313206555,1706947846404,-534.34158102,0.00022999,2]
[313206556,1706947846414,-500.0,0.00022999,2]
[313206557,1706947846423,-500.0,0.00022999,2]
[313206558,1706947846432,-780.78,0.00022999,2]
[313206559,1706947846441,-567.71,0.00022999,2]
[313206560,1706947846450,-500.0,0.00022999,2]
[313206561,1706947846459,-500.0,0.00022999,2]
[313206562,1706947846468,-600.18,0.00022999,2]
[313206563,1706947846477,-500.0,0.00022999,2]
[313206564,1706947846486,-629.39,0.00022999,2]
[313206565,1706947846495,-500.0,0.00022999,2]
[313206566,1706947846504,-500.0,0.00022999,2]
[313206567,1706947846514,-500.0,0.00022999,2]
[313206568,1706947846525,-500.0,0.00022999,2]
[313206569,1706947846534,-500.0,0.00022999,2]
[313206570,1706947846543,-500.0,0.00022999,2]
[313206571,1706947846552,-500.0,0.00022999,2]
[313206572,1706947846562,-500.0,0.00022999,2]
[313206573,1706947846571,-500.0,0.00022999,2]
[313206574,1706947846581,-626.72,0.00022999,2]
[313206575,1706947846591,-500.0,0.00022999,2]
[313206576,1706947846602,-500.0,0.00022999,2]
[313206577,1706947846612,-500.0,0.00022999,2]
[313206578,1706947846622,-534.49,0.00022999,2]
[313206579,1706947846632,-500.0,0.00022999,2]
[313206580,1706947846641,-540.75,0.00022999,2]
[313206581,1706947846651,-500.0,0.00022999,2]
[313206582,1706947846661,-500.0,0.00022999,2]
[313206583,1706947846671,-500.0,0.00022999,2]
[313206584,1706947846682,-500.0,0.00022999,2]
[313206585,1706947846692,-500.0,0.00022999,2]
[313206586,1706947846702,-500.0,0.00022999,2]
[313206587,1706947846711,-500.0,0.00022999,2]
[313206588,1706947846720,-500.0,0.00022999,2]
[313206589,1706947846729,-610.46,0.00022999,2]
[313206590,1706947846739,-500.0,0.00022999,2]
[313206591,1706947846748,-500.0,0.00022999,2]
[313206592,1706947846757,-500.0,0.00022999,2]
[313206593,1706947846766,-628.09,0.00022999,2]
[313206594,1706947846776,-1465.3,0.00022999,2]
[313206595,1706947846785,-500.0,0.00022999,2]
[313206596,1706947846796,-500.0,0.00022999,2]
[313206597,1706947846806,-500.0,0.00022999,2]
[313206598,1706947846816,-1985.63,0.00022999,2]
[313206599,1706947846826,-565.75,0.00022999,2]
[313206600,1706947846836,-500.0,0.00022999,2]
[313206601,1706947846846,-500.0,0.00022999,2]
[313206602,1706947846856,-421.82302661,0.00022999,2]
[313206603,1706947846865,-500.0,0.00022999,2]
[313206604,1706947846875,-500.0,0.00022999,2]
[313206605,1706947846886,-1836.02288173,0.00022999,2]
[313206606,1706947846900,-12329.62711827,0.00022999,2]
[313206607,1706947846911,-500.0,0.00022999,2]
[313206608,1706947846920,-534.47,0.00022999,2]
[313206609,1706947846929,-500.0,0.00022999,2]
[313206610,1706947846938,-500.0,0.00022999,2]
[313206611,1706947846949,-500.0,0.00022999,2]
[313206612,1706947846958,-500.0,0.00022999,2]
[313206613,1706947846967,-500.0,0.00022999,2]
[313206614,1706947846976,-500.0,0.00022999,2]
[313206615,1706947846986,-525.0,0.00023,2]
[313206616,1706947846995,-1482.03344398,0.00023,3]
[313206617,1706947847005,-702.3691773,0.00023,3]
[313206618,1706947847014,-9377.44681604,0.00023,3]
[313206619,1706947847025,-478.99076676,0.00023,3]
[313206620,1706947847045,-1713.60714684,0.00023,3]
[313206621,1706947847058,-1229.61158898,0.00023,3]
[313206622,1706947847071,-11326.26027201,0.00023,3]
[313206623,1706947847091,-276.90558802,0.00023,3]
[313206624,1706947847103,-900.15046863,0.00023,3]
[313206625,1706947847115,-1053.89118842,0.00023,3]
[313206626,1706947847127,-24042.11249482,0.00023,3]
[313206627,1706947847142,-2517.77944775,0.00023,3]
[313206629,1706947869864,3339.84432485,0.00022196,2]
[313206630,1706947936671,200.0,0.000223,8]
[313206631,1706947938769,500.0,0.000224,8]
[313206632,1706947952376,393.53,0.00022084,2]
[313206633,1706947972786,338.23569729,0.00022499,2]
[313206634,1706947992888,150.14,0.00020151,2]
[313206635,1706948058656,641.31,0.0002203,2]
[313206636,1706948117113,293.04765868,0.00022499,2]
[313206637,1706948130743,245.72720957,0.00022499,2]
[313206638,1706948135026,232.82031935,0.00022499,2]
[313206639,1706948173737,489.3,0.00021995,2]
[313206640,1706948188574,159.77,0.00022159,2]
[313206641,1706948188789,159.77,0.00022448,2]
[313206642,1706948199397,616.59631147,0.00022196,2]
[313206643,1706948203226,250.0,0.00021982,2]
[313206644,1706948247862,151.86,0.00021962,2]
[313206645,1706948327813,194.71200086,0.000225,2]
[313206646,1706948404602,174.22,0.00021949,2]
[313206647,1706948448778,150.14,0.00020024,2]
[313206648,1706948460643,685.17,0.0002193,2]
[313206649,1706948501738,293.04765868,0.00022499,2]
[313206650,1706948529574,2462.13677743,0.00022196,2]
[313206651,1706948603470,159.77,0.0002209,2]
[313206652,1706948658874,4511.57,0.000225,2]
[313206653,1706948671331,686.94551204,0.00022499,2]
[313206654,1706948710203,500.0,0.000219,2]
[313206655,1706948749837,357.89861177,0.00022499,2]
[313206656,1706948765164,208.0,0.00021952,2]
[313206657,1706948794993,407.75,0.00021916,2]
[313206658,1706948826363,357.89861177,0.00022499,2]
[313206659,1706948829971,569.06972147,0.00022196,2]
[313206660,1706948845949,200.0,0.000223,8]
[313206661,1706948848107,500.0,0.000224,8]
[313206662,1706948860982,189.57,0.00021898,2]
[313206663,1706948889887,451.86,0.00021898,2]
[313206664,1706948895038,150.0,0.00022,2]
[313206665,1706948900879,357.89861177,0.00022499,2]
[313206666,1706948918393,150.14,0.00019977,2]
[313206667,1706948971387,357.89861177,0.00022499,2]
[313206668,1706949001808,56496.47930262,0.000225,2]
[313206669,1706949020695,158.42,0.00022048,2]
[313206697,1706949031952,-1317.76550808,0.000225,7]
[313206698,1706949031964,-308.5094613,0.000225,7]
[313206699,1706949031980,-909.03570238,0.000225,7]
[313206700,1706949031991,-6282.07324993,0.000225,7]
[313206701,1706949032000,-1000.0,0.000225,23]
[313206702,1706949032009,-752.79882992,0.000225,2]
[313206703,1706949032019,-700.0,0.000225,8]
[313206704,1706949032028,-12888.0,0.00022541,2]
[313206705,1706949032037,-150.0,0.00022548,2]
[313206706,1706949032047,-4060.0,0.000226,2]
[313206707,1706949032056,-30497.0,0.000226,2]
[313206708,1706949032066,-1000.0,0.000226,8]
[313206709,1706949032075,-158.42,0.00022623,2]
[313206710,1706949032084,-150.14,0.00022665,2]
[313206711,1706949032093,-1000.0,0.000227,2]
[313206712,1706949032103,-829.63,0.000227,2]
[313206713,1706949032112,-150.0,0.000227,2]
[313206714,1706949032122,-403.47,0.000227,2]
[313206715,1706949032131,-420.36,0.000227,2]
[313206716,1706949032141,-341.74,0.000227,2]
[313206717,1706949032150,-945.4,0.000227,2]
[313206718,1706949032159,-417.05,0.000227,2]
[313206719,1706949032168,-338.41,0.000227,2]
[313206720,1706949032178,-403.47,0.000227,2]
[313206721,1706949032187,-150.0,0.000227,2]
[313206722,1706949032197,-945.4,0.000227,2]
[313206723,1706949032206,-403.47,0.000227,2]
[313206724,1706949032215,-420.36,0.000227,2]
[313206725,1706949032224,-945.4,0.000227,2]
[313206726,1706949032234,-403.47,0.000227,2]
[313206727,1706949032243,-150.0,0.000227,2]
[313206728,1706949032252,-417.05,0.000227,2]
[313206729,1706949032261,-420.36,0.000227,2]
[313206730,1706949032270,-403.47,0.000227,2]
[313206731,1706949032280,-945.4,0.000227,2]
[313206732,1706949032289,-945.4,0.000227,2]
[313206734,1706949032298,-417.05,0.000227,2]
[313206736,1706949032307,-403.47,0.000227,2]
[313206738,1706949032317,-349.41,0.000227,2]
[313206740,1706949032326,-420.36,0.000227,2]
[313206742,1706949032334,-291.68,0.000227,2]
[313206744,1706949032343,-1200.0,0.000227,8]
[313206746,1706949032352,-416.98008332,0.00022767,2]
[313206748,1706949032361,-496.18273898,0.00022768,2]
[313206749,1706949032371,-499.99,0.0002277,2]
[313206751,1706949032380,-420.36,0.000228,2]
[313206752,1706949032389,-403.47,0.000228,2]
[313206754,1706949032397,-945.4,0.000228,2]